[Event "6th Karoun Masters Cup 2019"]
[Site "Ahvaz"]
[Date "2019.02.23"]
[Round "4.3"]
[White "Li, Bo"]
[Black "Bernadskiy, Vitaliy"]
[Result "1/2-1/2"]
[ECO "E62"]
[WhiteElo "2325"]
[BlackElo "2570"]
[Annotator "ChessBase"]
[PlyCount "119"]
[EventDate "2019.02.21"]
[EventType "swiss"]
[EventRounds "9"]
[EventCountry "IRI"]
[SourceTitle "playchess.com"]
[Source "ChessBase"]
[SourceQuality "1"]
[TimeControl "5400+30"]

1. d4 {[%emt 0:00:00]} Nf6 {[%emt 0:00:00]} 2. c4 {[%emt 0:00:42]} g6 {[%emt 0:00:00]} 3. Nc3 {[%emt 0:01:31]} Bg7 {[%emt 0:00:00]} 4. g3 {[%emt 0:05:17]} O-O {[%emt 0:01:33]} 5. Bg2 {[%emt 0:00:46]} d6 {[%emt 0:00:20]} 6. Nf3 {[%emt 0:01:57]} c6 {[%emt 0:00:13]} 7. O-O {[%emt 0:01:45]} Bf5 {[%emt 0:00:02]} 8. Qb3 {[%emt 0:05:01]} Qc8 {[%emt 0:01:46]} 9. Bf4 {[%emt 0:08:32]} Na6 {[%emt 0:00:32]} 10. Rac1 {[%emt 0:02:30]} Re8 {[%emt 0:00:21]} 11. Rfd1 {[%emt 0:06:30]} h6 {[%emt 0:04:23]} 12. Qa3 {[%emt 0:05:50]} Nc7 {[%emt 0:04:40]} 13. b4 {[%emt 0:05:04]} g5 {[%emt 0:02:28]} 14. Bd2 {[%emt 0:04:23]} e5 {[%emt 0:02:14]} 15. d5 {[%emt 0:06:02]} cxd5 {[%emt 0:00:55]} 16. Nxd5 {[%emt 0:04:35]} Ncxd5 {[%emt 0:00:13]} 17. cxd5 {[%emt 0:00:04]} Qd7 {[%emt 0:00:07]} 18. Qb3 {[%emt 0:02:39]} Be4 {[%emt 0:03:10]} 19. Ne1 {[%emt 0:00:54]} Bxg2 {[%emt 0:00:31]} 20. Nxg2 {[%emt 0:01:01]} Qb5 {[%emt 0:07:10]} 21. Qc4 {[%emt 0:02:52]} Qxc4 {[%emt 0:10:19]} 22. Rxc4 {[%emt 0:00:02]} Nxd5 {[%emt 0:00:06]} 23. Be1 {[%emt 0:08:24]} Nb6 {[%emt 0:01:24]} 24. Rc7 {[%emt 0:00:05]} d5 {[%emt 0:01:46]} 25. Rxb7 {[%emt 0:04:23]} d4 {[%emt 0:01:40]} 26. h4 {[%emt 0:02:06]} Rec8 {[%emt 0:02:05]} 27. hxg5 {[%emt 0:01:04]} hxg5 {[%emt 0:00:04]} 28. e3 {[%emt 0:02:19]} Rc2 {[%emt 0:00:27]} 29. exd4 {[%emt 0:00:45]} exd4 {[%emt 0:03:04]} 30. Bd2 {[%emt 0:02:10]} Bf6 {[%emt 0:00:51]} 31. Ne1 {[%emt 0:01:38]} Rxa2 {[%emt 0:00:07]} 32. Nf3 {[%emt 0:00:11]} g4 {[%emt 0:03:13]} 33. Nh2 {[%emt 0:01:12]} Rd8 {[%emt 0:03:15]} 34. Nxg4 {[%emt 0:00:08]} Bg7 {[%emt 0:00:06]} 35. Bh6 {[%emt 0:05:05]} Nc4 {[%emt 0:13:19]} 36. Rc7 {[%emt 0:01:57]} Rc2 {[%emt 0:11:27]} 37. Bxg7 {[%emt 0:00:52]} Kxg7 {[%emt 0:00:04]} 38. Ne5 {[%emt 0:00:25]} Nb2 {[%emt 0:00:13]} 39. Rxd4 {[%emt 0:03:25]} Rxd4 {[%emt 0:00:21]} 40. Rxc2 {[%emt 0:00:05]} Rxb4 {[%emt 0:00:11]} 41. Rc7 {[%emt 0:01:18]} Kf6 {[%emt 0:00:51]} 42. f4 {[%emt 0:00:26]} a5 {[%emt 0:00:41]} 43. Rxf7+ {[%emt 0:00:22]} Ke6 {[%emt 0:00:01]} 44. Ra7 {[%emt 0:00:43]} a4 {[%emt 0:00:04]} 45. Kg2 {[%emt 0:00:58]} Kd5 {[%emt 0:03:22]} 46. Kf3 {[%emt 0:00:52]} Rb3+ {[%emt 0:00:02]} 47. Kg4 {[%emt 0:00:31]} a3 {[%emt 0:00:10]} 48. Ra5+ {[%emt 0:00:40]} Ke4 {[%emt 0:00:04]} 49. f5 {[%emt 0:01:43]} Nd1 {[%emt 0:11:42]} 50. Nc4 {[%emt 0:00:39]} Nf2+ {[%emt 0:01:02]} 51. Kh4 {[%emt 0:00:10]} Rb8 {[%emt 0:00:09]} 52. Rxa3 {[%emt 0:01:01]} Rb4 {[%emt 0:00:51]} 53. Ne3 {[%emt 0:01:09]} Nd3 {[%emt 0:01:02]} 54. Rxd3 {[%emt 0:01:22]} Kxd3+ {[%emt 0:00:04]} 55. Ng4 {[%emt 0:00:10]} Ke4 {[%emt 0:00:11]} 56. Kg5 {[%emt 0:00:05]} Kf3 {[%emt 0:00:42]} 57. Ne5+ {[%emt 0:01:06]} Kxg3 {[%emt 0:00:12]} 58. f6 {[%emt 0:00:16]} Rf4 {[%emt 0:00:04]} 59. f7 {[%emt 0:00:10]} Rxf7 {[%emt 0:00:04]} 60. Nxf7 1/2-1/2

[Event "6th Karoun Masters Cup 2019"]
[Site "Ahvaz"]
[Date "2019.02.23"]
[Round "4.4"]
[White "Kreisl, Robert"]
[Black "Khademi, Mohammad Miran"]
[Result "1/2-1/2"]
[ECO "B06"]
[WhiteElo "2424"]
[BlackElo "2298"]
[Annotator "NA"]
[PlyCount "29"]
[EventDate "2019.02.21"]
[EventType "swiss"]
[EventRounds "9"]
[EventCountry "IRI"]
[SourceTitle "playchess.com"]
[Source "ChessBase"]
[SourceQuality "1"]
[TimeControl "5400+30"]

1. d4 {[%emt 0:00:00]} g6 {[%emt 0:00:03]} 2. e4 {[%emt 0:01:37]} Bg7 {[%emt 0:00:17]} 3. c4 {[%emt 0:01:26]} c5 {[%emt 0:02:27]} 4. Nf3 {[%emt 0:00:09]} d6 {[%emt 0:00:20]} 5. Nc3 {[%emt 0:00:17]} cxd4 {[%emt 0:03:10]} 6. Nxd4 {[%emt 0:00:04]} Nc6 {[%emt 0:00:09]} 7. Be3 {[%emt 0:00:03]} Nf6 {[%emt 0:02:39]} 8. Be2 {[%emt 0:00:07]} h5 {[%emt 0:02:51]} 9. h3 {[%emt 0:07:17]} O-O {[%emt 0:14:44]} 10. O-O {[%emt 0:05:42]} Nd7 {[%emt 0:08:37]} 11. Rc1 {[%emt 0:14:39]} a5 {[%emt 0:06:19]} 12. Ndb5 {[%emt 0:06:34]} Nc5 {[%emt 0:07:30]} 13. f4 {[%emt 0:02:42]} b6 {[%emt 0:00:30]} 14. Qd2 {[%emt 0:03:33]} Bb7 {[%emt 0:04:06]} 15. Bf3 {[%emt 0:09:23]} 1/2-1/2

[Event "6th Karoun Masters Cup 2019"]
[Site "Ahvaz"]
[Date "2019.02.23"]
[Round "4.5"]
[White "Babaniya, Benyamin"]
[Black "Grigoryan, Karen H."]
[Result "0-1"]
[ECO "B48"]
[WhiteElo "2184"]
[BlackElo "2590"]
[Annotator "ChessBase"]
[PlyCount "102"]
[EventDate "2019.02.21"]
[EventType "swiss"]
[EventRounds "9"]
[EventCountry "IRI"]
[SourceTitle "playchess.com"]
[Source "ChessBase"]
[SourceQuality "1"]
[TimeControl "5400+30"]

1. e4 {[%emt 0:03:44]} c5 {[%emt 0:03:12]} 2. Nf3 {[%emt 0:00:07]} Nc6 {[%emt 0:00:52]} 3. d4 {[%emt 0:00:47]} cxd4 {[%emt 0:00:08]} 4. Nxd4 {[%emt 0:00:03]} e6 {[%emt 0:00:07]} 5. Nc3 {[%emt 0:04:31]} Qc7 {[%emt 0:00:09]} 6. Be3 {[%emt 0:00:31]} Nf6 {[%emt 0:00:41]} 7. Qf3 {[%emt 0:01:24]} a6 {[%emt 0:06:43]} 8. O-O-O {[%emt 0:00:51]} Nxd4 {[%emt 0:02:55]} 9. Bxd4 {[%emt 0:03:02]} Bd6 {[%emt 0:00:20]} 10. Kb1 {[%emt 0:03:11]} e5 {[%emt 0:12:25]} 11. Be3 {[%emt 0:01:24]} Bb4 {[%emt 0:01:04]} 12. Bh6 {[%emt 0:09:26]} O-O {[%emt 0:09:56]} 13. Bxg7 {[%emt 0:03:24]} Kxg7 {[%emt 0:00:11]} 14. Qxf6+ {[%emt 0:00:09]} Kxf6 {[%emt 0:00:04]} 15. Nd5+ {[%emt 0:00:04]} Kg7 {[%emt 0:00:06]} 16. Nxc7 {[%emt 0:00:04]} Rb8 {[%emt 0:00:10]} 17. Nd5 {[%emt 0:09:16]} Bc5 {[%emt 0:00:08]} 18. f3 {[%emt 0:03:04]} b5 {[%emt 0:00:10]} 19. g4 {[%emt 0:02:14]} Bb7 {[%emt 0:01:20]} 20. Nc3 {[%emt 0:00:54]} Rfd8 {[%emt 0:00:25]} 21. Bg2 {[%emt 0:03:40]} b4 {[%emt 0:00:42]} 22. Nd5 {[%emt 0:01:13]} d6 {[%emt 0:05:34]} 23. g5 {[%emt 0:02:53]} Bxd5 {[%emt 0:02:06]} 24. Rxd5 {[%emt 0:00:31]} h6 {[%emt 0:01:45]} 25. gxh6+ {[%emt 0:07:45]} Kxh6 {[%emt 0:00:07]} 26. Bh3 {[%emt 0:00:33]} Kg5 {[%emt 0:00:05]} 27. Bg4 {[%emt 0:00:12]} Rh8 {[%emt 0:00:04]} 28. h3 {[%emt 0:00:14]} a5 {[%emt 0:00:24]} 29. Rhd1 {[%emt 0:03:24]} a4 {[%emt 0:00:27]} 30. R1d3 {[%emt 0:03:55]} Kf4 {[%emt 0:00:11]} 31. Kc1 {[%emt 0:01:26]} Rh6 {[%emt 0:01:53]} 32. Kd1 {[%emt 0:00:30]} Rbh8 {[%emt 0:00:30]} 33. Ke2 {[%emt 0:00:30]} Rxh3 {[%emt 0:00:30]} 34. Bxh3 {[%emt 0:00:30]} Rxh3 {[%emt 0:00:30]} 35. a3 {[%emt 0:08:20]} bxa3 {[%emt 0:00:00]} 36. bxa3 {[%emt 0:00:01]} Rh2+ {[%emt 0:00:00]} 37. Kd1 {[%emt 0:01:59]} Rf2 {[%emt 0:00:13]} 38. Rc3 {[%emt 0:09:52]} Rxf3 {[%emt 0:00:52]} 39. Rdd3 {[%emt 0:00:08]} Rf2 {[%emt 0:02:09]} 40. Ke1 {[%emt 0:00:16]} Rh2 {[%emt 0:00:29]} 41. Rf3+ {[%emt 0:01:19]} Kxe4 {[%emt 0:00:09]} 42. Rxf7 {[%emt 0:00:08]} Bd4 {[%emt 0:00:16]} 43. Rc6 {[%emt 0:02:41]} Ke3 {[%emt 0:00:38]} 44. Kf1 {[%emt 0:00:47]} Bc5 {[%emt 0:00:08]} 45. Rd7 {[%emt 0:01:30]} Rxc2 {[%emt 0:01:59]} 46. Ra6 {[%emt 0:03:28]} Rc1+ {[%emt 0:00:33]} 47. Kg2 {[%emt 0:00:01]} Rc4 {[%emt 0:00:07]} 48. Rd8 {[%emt 0:00:41]} e4 {[%emt 0:00:35]} 49. Rda8 {[%emt 0:00:27]} Kd2 {[%emt 0:00:10]} 50. Rxa4 {[%emt 0:01:25]} Rxa4 {[%emt 0:00:42]} 51. Rxa4 {[%emt 0:00:06]} e3 {[%emt 0:00:19]} 0-1

[Event "6th Karoun Masters Cup 2019"]
[Site "Ahvaz"]
[Date "2019.02.23"]
[Round "4.6"]
[White "Razaghi, Behrooz"]
[Black "Sibashvili, Giorgi"]
[Result "1/2-1/2"]
[ECO "C18"]
[WhiteElo "2156"]
[BlackElo "2420"]
[Annotator "NA"]
[PlyCount "77"]
[EventDate "2019.02.21"]
[EventType "swiss"]
[EventRounds "9"]
[EventCountry "IRI"]
[SourceTitle "playchess.com"]
[Source "ChessBase"]
[SourceQuality "1"]
[TimeControl "5400+30"]

1. e4 {[%emt 0:04:58]} e6 {[%emt 0:00:00]} 2. d4 {[%emt 0:00:06]} d5 {[%emt 0:00:00]} 3. Nc3 {[%emt 0:00:04]} Bb4 {[%emt 0:00:15]} 4. e5 {[%emt 0:00:06]} c5 {[%emt 0:00:05]} 5. a3 {[%emt 0:00:04]} Bxc3+ {[%emt 0:00:05]} 6. bxc3 {[%emt 0:00:04]} Ne7 {[%emt 0:00:38]} 7. Qg4 {[%emt 0:00:08]} Qc7 {[%emt 0:00:14]} 8. Qxg7 {[%emt 0:00:15]} Rg8 {[%emt 0:00:05]} 9. Qxh7 {[%emt 0:00:07]} cxd4 {[%emt 0:00:08]} 10. Qd3 {[%emt 0:01:57]} Qxe5+ {[%emt 0:08:22]} 11. Ne2 {[%emt 0:00:25]} dxc3 {[%emt 0:00:41]} 12. Qxc3 {[%emt 0:00:08]} Nbc6 {[%emt 0:10:36]} 13. Qxe5 {[%emt 0:09:01]} Nxe5 {[%emt 0:00:07]} 14. Nd4 {[%emt 0:07:26]} a6 {[%emt 0:04:04]} 15. Bb2 {[%emt 0:05:17]} Nc4 {[%emt 0:01:10]} 16. Bxc4 {[%emt 0:03:54]} dxc4 {[%emt 0:00:48]} 17. h4 {[%emt 0:07:44]} e5 {[%emt 0:04:01]} 18. Ne2 {[%emt 0:00:47]} f6 {[%emt 0:01:51]} 19. Rh2 {[%emt 0:18:56]} Nd5 {[%emt 0:15:43]} 20. Rd1 {[%emt 0:09:24]} Be6 {[%emt 0:00:50]} 21. Nc3 {[%emt 0:00:28]} Nxc3 {[%emt 0:05:23]} 22. Bxc3 {[%emt 0:00:06]} Kf7 {[%emt 0:00:45]} 23. f3 {[%emt 0:03:04]} Rae8 {[%emt 0:08:26]} 24. Kf2 {[%emt 0:02:54]} Bf5 {[%emt 0:01:51]} 25. Rd2 {[%emt 0:00:49]} Rd8 {[%emt 0:05:14]} 26. Ke3 {[%emt 0:02:16]} Rxd2 {[%emt 0:01:12]} 27. Kxd2 {[%emt 0:02:00]} Rg3 {[%emt 0:05:30]} 28. Kc1 {[%emt 0:01:23]} e4 {[%emt 0:02:25]} 29. Be1 {[%emt 0:00:21]} Rg8 {[%emt 0:00:58]} 30. fxe4 {[%emt 0:00:33]} Bxe4 {[%emt 0:01:07]} 31. g3 {[%emt 0:00:06]} f5 {[%emt 0:05:06]} 32. h5 {[%emt 0:02:28]} Kg7 {[%emt 0:02:43]} 33. Bd2 {[%emt 0:01:35]} Kh7 {[%emt 0:01:27]} 34. Bf4 {[%emt 0:00:26]} Rd8 {[%emt 0:03:44]} 35. Rd2 {[%emt 0:01:39]} Rxd2 {[%emt 0:00:16]} 36. Kxd2 {[%emt 0:00:06]} Bf3 {[%emt 0:00:52]} 37. h6 {[%emt 0:00:15]} Be4 {[%emt 0:00:59]} 38. c3 {[%emt 0:00:22]} Kg6 {[%emt 0:01:00]} 39. Ke3 {[%emt 0:01:41]} 1/2-1/2

[Event "6th Karoun Masters Cup 2019"]
[Site "Ahvaz"]
[Date "2019.02.27"]
[Round "9.1"]
[White "Grigoryan, Karen H."]
[Black "Bernadskiy, Vitaliy"]
[Result "1/2-1/2"]
[ECO "C15"]
[WhiteElo "2590"]
[BlackElo "2570"]
[Annotator "ChessBase"]
[PlyCount "52"]
[EventDate "2019.02.21"]
[EventType "swiss"]
[EventRounds "9"]
[EventCountry "IRI"]
[SourceTitle "playchess.com"]
[Source "ChessBase"]
[SourceQuality "1"]
[TimeControl "5400+30"]

1. e4 {[%emt 0:00:01]} e6 {[%emt 0:00:00]} 2. d4 {[%emt 0:00:12]} d5 {[%emt 0:00:00]} 3. Nc3 {[%emt 0:00:10]} Bb4 {[%emt 0:00:00]} 4. Nge2 {[%emt 0:02:01]} Nc6 {[%emt 0:01:55]} 5. a3 {[%emt 0:02:07]} Ba5 {[%emt 0:00:04]} 6. b4 {[%emt 0:01:47]} Bb6 {[%emt 0:00:04]} 7. e5 {[%emt 0:02:11]} f6 {[%emt 0:01:06]} 8. b5 {[%emt 0:02:10]} Nce7 {[%emt 0:12:32]} 9. Na4 {[%emt 0:10:35]} Ba5+ {[%emt 0:07:15]} 10. Bd2 {[%emt 0:00:42]} Bxd2+ {[%emt 0:04:41]} 11. Qxd2 {[%emt 0:00:08]} fxe5 {[%emt 0:00:43]} 12. dxe5 {[%emt 0:00:25]} Ng6 {[%emt 0:00:05]} 13. f4 {[%emt 0:11:52]} Nxe5 {[%emt 0:04:44]} 14. fxe5 {[%emt 0:04:22]} Qh4+ {[%emt 0:00:10]} 15. g3 {[%emt 0:00:36]} Qxa4 {[%emt 0:03:25]} 16. Nd4 {[%emt 0:03:07]} Ne7 {[%emt 0:01:57]} 17. Bd3 {[%emt 0:04:09]} O-O {[%emt 0:03:05]} 18. Qb4 {[%emt 0:07:18]} Qxb4+ {[%emt 0:00:15]} 19. axb4 {[%emt 0:00:06]} Bd7 {[%emt 0:01:42]} 20. Kd2 {[%emt 0:08:50]} c6 {[%emt 0:01:16]} 21. bxc6 {[%emt 0:00:25]} Nxc6 {[%emt 0:00:24]} 22. Nxc6 {[%emt 0:00:23]} Bxc6 {[%emt 0:00:24]} 23. b5 {[%emt 0:00:07]} Be8 {[%emt 0:00:38]} 24. Ra3 {[%emt 0:06:53]} Bg6 {[%emt 0:01:42]} 25. Rha1 {[%emt 0:05:06]} Bxd3 {[%emt 0:02:02]} 26. Kxd3 {[%emt 0:03:17]} a6 {[%emt 0:04:20] Ke4} 1/2-1/2

[Event "6th Karoun Masters Cup 2019"]
[Site "Ahvaz"]
[Date "2019.02.27"]
[Round "9.2"]
[White "Danielyan, Vahe"]
[Black "Lomsadze, Davit"]
[Result "1-0"]
[ECO "B06"]
[WhiteElo "2186"]
[BlackElo "2286"]
[Annotator "NA"]
[PlyCount "47"]
[EventDate "2019.02.21"]
[EventType "swiss"]
[EventRounds "9"]
[EventCountry "IRI"]
[SourceTitle "playchess.com"]
[Source "ChessBase"]
[SourceQuality "1"]
[TimeControl "5400+30"]

1. e4 {[%emt 0:00:00]} g6 {[%emt 0:02:10]} 2. d4 {[%emt 0:00:20]} Bg7 {[%emt 0:00:07]} 3. Nc3 {[%emt 0:00:09]} c6 {[%emt 0:00:43]} 4. Be3 {[%emt 0:03:33]} d6 {[%emt 0:01:20]} 5. Qd2 {[%emt 0:00:43]} b5 {[%emt 0:02:21]} 6. h4 {[%emt 0:05:25]} h5 {[%emt 0:11:21]} 7. Nf3 {[%emt 0:13:00]} Nf6 {[%emt 0:02:57]} 8. e5 {[%emt 0:07:32]} Ng4 {[%emt 0:06:42]} 9. exd6 {[%emt 0:08:31]} exd6 {[%emt 0:04:04]} 10. Bg5 {[%emt 0:04:04]} f6 {[%emt 0:02:00]} 11. Bf4 {[%emt 0:02:11]} O-O {[%emt 0:07:52]} 12. Bd3 {[%emt 0:06:22]} Re8+ {[%emt 0:04:04]} 13. Ne2 {[%emt 0:01:59]} Kh7 {[%emt 0:08:26]} 14. O-O {[%emt 0:09:45]} Na6 {[%emt 0:07:17]} 15. Ng3 {[%emt 0:06:54]} f5 {[%emt 0:08:11]} 16. Rae1 {[%emt 0:05:34]} Rxe1 {[%emt 0:06:27]} 17. Rxe1 {[%emt 0:00:13]} Nc7 {[%emt 0:02:44]} 18. a4 {[%emt 0:08:12]} Bb7 {[%emt 0:11:30]} 19. axb5 {[%emt 0:03:45]} cxb5 {[%emt 0:01:03]} 20. Ng5+ {[%emt 0:00:07]} Kg8 {[%emt 0:00:23]} 21. Bxf5 {[%emt 0:03:44]} gxf5 {[%emt 0:02:46]} 22. Nxf5 {[%emt 0:00:09]} Qf6 {[%emt 0:05:26]} 23. Ne7+ {[%emt 0:01:13]} Kh8 {[%emt 0:00:08]} 24. Qd3 {[%emt 0:00:46]} 1-0

[Event "6th Karoun Masters Cup 2019"]
[Site "Ahvaz"]
[Date "2019.02.27"]
[Round "9.3"]
[White "Lorparizangeneh, Shahin"]
[Black "Sibashvili, Giorgi"]
[Result "1-0"]
[ECO "E10"]
[WhiteElo "2493"]
[BlackElo "2420"]
[Annotator "ChessBase"]
[PlyCount "73"]
[EventDate "2019.02.21"]
[EventType "swiss"]
[EventRounds "9"]
[EventCountry "IRI"]
[SourceTitle "playchess.com"]
[Source "ChessBase"]
[SourceQuality "1"]
[TimeControl "5400+30"]

1. d4 {[%emt 0:02:55]} Nf6 {[%emt 0:00:00]} 2. c4 {[%emt 0:00:33]} e6 {[%emt 0:00:34]} 3. Nf3 {[%emt 0:00:23]} d5 {[%emt 0:00:40]} 4. g3 {[%emt 0:00:30]} Bb4+ {[%emt 0:00:44]} 5. Bd2 {[%emt 0:00:26]} Bd6 {[%emt 0:00:11]} 6. Nc3 {[%emt 0:00:42]} c6 {[%emt 0:04:15]} 7. Bg5 {[%emt 0:07:07]} Nbd7 {[%emt 0:06:00]} 8. Qd3 {[%emt 0:09:35]} O-O {[%emt 0:06:02]} 9. Bg2 {[%emt 0:00:26]} b6 {[%emt 0:03:28]} 10. e4 {[%emt 0:10:18]} Be7 {[%emt 0:10:40]} 11. cxd5 {[%emt 0:12:43]} cxd5 {[%emt 0:00:35]} 12. e5 {[%emt 0:00:08]} Ne8 {[%emt 0:00:32]} 13. Bxe7 {[%emt 0:02:17]} Qxe7 {[%emt 0:00:05]} 14. O-O {[%emt 0:00:55]} Nc7 {[%emt 0:01:14]} 15. Rfc1 {[%emt 0:05:46]} Ba6 {[%emt 0:05:28]} 16. Qd2 {[%emt 0:00:27]} Rfc8 {[%emt 0:01:22]} 17. h4 {[%emt 0:06:32]} b5 {[%emt 0:04:45]} 18. Ne2 {[%emt 0:02:28]} b4 {[%emt 0:05:27]} 19. Nf4 {[%emt 0:00:37]} Nb6 {[%emt 0:02:36]} 20. b3 {[%emt 0:07:38]} Bb5 {[%emt 0:10:45]} 21. Rc5 {[%emt 0:02:05]} a5 {[%emt 0:04:56]} 22. Rac1 {[%emt 0:01:01]} Qd7 {[%emt 0:02:07]} 23. Nh5 {[%emt 0:08:25]} h6 {[%emt 0:06:04]} 24. Nf6+ {[%emt 0:06:18]} gxf6 {[%emt 0:00:07]} 25. exf6 {[%emt 0:00:02]} Ne8 {[%emt 0:15:08]} 26. Ne5 {[%emt 0:01:30]} Qd8 {[%emt 0:00:18]} 27. Rxb5 {[%emt 0:00:48]} Rxc1+ {[%emt 0:02:07]} 28. Qxc1 {[%emt 0:00:02]} Nxf6 {[%emt 0:00:09]} 29. Qxh6 {[%emt 0:00:23]} Nbd7 {[%emt 0:02:20]} 30. Bf1 {[%emt 0:09:36]} Nxe5 {[%emt 0:02:15]} 31. dxe5 {[%emt 0:00:06]} Ne4 {[%emt 0:00:46]} 32. Bd3 {[%emt 0:00:54]} Rb8 {[%emt 0:03:35]} 33. Bxe4 {[%emt 0:01:21]} dxe4 {[%emt 0:00:24]} 34. Qg5+ {[%emt 0:00:12]} Kf8 {[%emt 0:00:15]} 35. Rxb8 {[%emt 0:00:26]} Qxb8 {[%emt 0:00:02]} 36. h5 {[%emt 0:00:08]} Qb6 {[%emt 0:01:30]} 37. h6 {[%emt 0:00:48]} 1-0

[Event "6th Karoun Masters Cup 2019"]
[Site "Ahvaz"]
[Date "2019.02.27"]
[Round "9.4"]
[White "Khademi, Mohammad Miran"]
[Black "Khodashenas, Mersad"]
[Result "1-0"]
[ECO "B20"]
[WhiteElo "2298"]
[BlackElo "2455"]
[Annotator "ChessBase"]
[PlyCount "89"]
[EventDate "2019.02.21"]
[EventType "swiss"]
[EventRounds "9"]
[EventCountry "IRI"]
[SourceTitle "playchess.com"]
[Source "ChessBase"]
[SourceQuality "1"]
[TimeControl "5400+30"]

1. e4 {[%emt 0:03:38]} c5 {[%emt 0:00:00]} 2. Ne2 {[%emt 0:05:45]} e6 {[%emt 0:00:09]} 3. Nbc3 {[%emt 0:00:38]} Nc6 {[%emt 0:04:46]} 4. g3 {[%emt 0:01:37]} Nf6 {[%emt 0:03:11]} 5. Bg2 {[%emt 0:00:13]} d5 {[%emt 0:07:42]} 6. exd5 {[%emt 0:03:29]} exd5 {[%emt 0:00:44]} 7. d4 {[%emt 0:00:17]} Bg4 {[%emt 0:05:35]} 8. h3 {[%emt 0:00:17]} cxd4 {[%emt 0:01:52]} 9. Nxd5 {[%emt 0:07:48]} Nxd5 {[%emt 0:02:31]} 10. hxg4 {[%emt 0:00:12]} Bb4+ {[%emt 0:02:47]} 11. c3 {[%emt 0:03:23]} dxc3 {[%emt 0:02:26]} 12. O-O {[%emt 0:00:54]} Nde7 {[%emt 0:06:14]} 13. Qb3 {[%emt 0:00:56]} cxb2 {[%emt 0:02:50]} 14. Bxb2 {[%emt 0:00:09]} O-O {[%emt 0:00:12]} 15. Nf4 {[%emt 0:00:07]} Bd6 {[%emt 0:03:11]} 16. Rad1 {[%emt 0:00:30]} Qc7 {[%emt 0:08:48]} 17. Ne6 {[%emt 0:01:19]} fxe6 {[%emt 0:00:01]} 18. Qxe6+ {[%emt 0:00:12]} Kh8 {[%emt 0:00:07]} 19. Rxd6 {[%emt 0:00:12]} Rad8 {[%emt 0:00:02]} 20. Rfd1 {[%emt 0:04:34]} Rxd6 {[%emt 0:04:52]} 21. Rxd6 {[%emt 0:00:17]} Qb6 {[%emt 0:00:01]} 22. Rd2 {[%emt 0:00:48]} Ng6 {[%emt 0:00:01]} 23. Qe2 {[%emt 0:09:58]} Qc7 {[%emt 0:01:17]} 24. f4 {[%emt 0:00:09]} Qc8 {[%emt 0:06:01]} 25. Kh2 {[%emt 0:15:41]} Rd8 {[%emt 0:04:56]} 26. f5 {[%emt 0:08:29]} Re8 {[%emt 0:02:10]} 27. Qd1 {[%emt 0:01:59]} Nge5 {[%emt 0:00:17]} 28. Bxc6 {[%emt 0:01:33]} Qxc6 {[%emt 0:05:08]} 29. Bxe5 {[%emt 0:00:39]} Rxe5 {[%emt 0:00:01]} 30. Rd8+ {[%emt 0:00:09]} Re8 {[%emt 0:00:01]} 31. Qd6 {[%emt 0:00:10]} Rg8 {[%emt 0:00:29]} 32. Rxg8+ {[%emt 0:09:18]} Kxg8 {[%emt 0:00:04]} 33. Qxc6 {[%emt 0:00:09]} bxc6 {[%emt 0:00:08]} 34. g5 {[%emt 0:00:05]} Kf7 {[%emt 0:14:34]} 35. g4 {[%emt 0:01:53]} Ke7 {[%emt 0:03:35]} 36. Kg3 {[%emt 0:00:06]} Kd6 {[%emt 0:05:34]} 37. Kf4 {[%emt 0:00:07]} Kd5 {[%emt 0:00:02]} 38. a4 {[%emt 0:00:07]} c5 {[%emt 0:03:58]} 39. a5 {[%emt 0:00:15]} c4 {[%emt 0:01:42]} 40. Ke3 {[%emt 0:00:06]} Ke5 {[%emt 0:00:03]} 41. Kd2 {[%emt 0:00:06]} h5 {[%emt 0:00:48]} 42. f6 {[%emt 0:03:35]} gxf6 {[%emt 0:00:46]} 43. g6 {[%emt 0:00:06]} Ke6 {[%emt 0:00:09]} 44. gxh5 {[%emt 0:00:05]} f5 {[%emt 0:00:19]} 45. Kc3 {[%emt 0:00:05]} 1-0

[Event "6th Karoun Masters Cup 2019"]
[Site "Ahvaz"]
[Date "2019.02.27"]
[Round "9.6"]
[White "Gholami Orimi, Mahdi"]
[Black "Nadimifar, Adnan"]
[Result "1-0"]
[ECO "A41"]
[WhiteElo "2375"]
[BlackElo "2241"]
[Annotator "NA"]
[PlyCount "79"]
[EventDate "2019.02.21"]
[EventType "swiss"]
[EventRounds "9"]
[EventCountry "IRI"]
[SourceTitle "playchess.com"]
[Source "ChessBase"]
[SourceQuality "1"]
[TimeControl "5400+30"]

1. d4 {[%emt 0:00:06]} d6 {[%emt 0:00:00]} 2. Nf3 {[%emt 0:00:08]} Bg4 {[%emt 0:00:00]} 3. c4 {[%emt 0:00:09]} Bxf3 {[%emt 0:00:21]} 4. exf3 {[%emt 0:00:32]} c6 {[%emt 0:00:40]} 5. Nc3 {[%emt 0:00:14]} g6 {[%emt 0:00:07]} 6. Be3 {[%emt 0:00:12]} Bg7 {[%emt 0:00:21]} 7. h4 {[%emt 0:01:18]} Nf6 {[%emt 0:00:59]} 8. g4 {[%emt 0:00:11]} h5 {[%emt 0:00:25]} 9. Bd3 {[%emt 0:01:18]} Qc8 {[%emt 0:02:52]} 10. g5 {[%emt 0:02:26]} Ng8 {[%emt 0:04:57]} 11. f4 {[%emt 0:00:46]} e6 {[%emt 0:00:32]} 12. d5 {[%emt 0:01:35]} Ne7 {[%emt 0:03:52]} 13. dxe6 {[%emt 0:16:28]} Qxe6 {[%emt 0:02:39]} 14. Qd2 {[%emt 0:02:49]} O-O {[%emt 0:08:20]} 15. O-O-O {[%emt 0:01:07]} Na6 {[%emt 0:02:35]} 16. Rhe1 {[%emt 0:00:55]} Qd7 {[%emt 0:01:28]} 17. Ne4 {[%emt 0:05:07]} Rfd8 {[%emt 0:08:53]} 18. Ng3 {[%emt 0:05:00]} d5 {[%emt 0:01:19]} 19. f5 {[%emt 0:03:54]} dxc4 {[%emt 0:03:30]} 20. Bxc4 {[%emt 0:02:32]} Nd5 {[%emt 0:14:38]} 21. Bd4 {[%emt 0:08:47]} b5 {[%emt 0:08:47]} 22. Bb3 {[%emt 0:02:14]} Nac7 {[%emt 0:06:34]} 23. Bxg7 {[%emt 0:01:29]} Kxg7 {[%emt 0:00:03]} 24. Qd4+ {[%emt 0:01:06]} Kh7 {[%emt 0:03:48]} 25. Bc2 {[%emt 0:03:08]} c5 {[%emt 0:02:41]} 26. Qd3 {[%emt 0:20:08]} Qc6 {[%emt 0:14:34]} 27. fxg6+ {[%emt 0:02:47]} fxg6 {[%emt 0:00:05]} 28. Nxh5 {[%emt 0:01:15]} Rf8 {[%emt 0:00:42]} 29. Nf6+ {[%emt 0:02:23]} Rxf6 {[%emt 0:00:23]} 30. gxf6 {[%emt 0:00:02]} Qxf6 {[%emt 0:02:38]} 31. Rg1 {[%emt 0:00:59]} Nf4 {[%emt 0:01:22]} 32. Qd7+ {[%emt 0:01:06]} Qg7 {[%emt 0:00:49]} 33. Bxg6+ {[%emt 0:00:29]} Nxg6 {[%emt 0:00:51]} 34. Qxg7+ {[%emt 0:00:12]} Kxg7 {[%emt 0:00:03]} 35. h5 {[%emt 0:00:35]} Kf6 {[%emt 0:01:41]} 36. Rxg6+ {[%emt 0:00:15]} Kf5 {[%emt 0:00:39]} 37. Rd7 {[%emt 0:00:25]} Ne8 {[%emt 0:00:24]} 38. Rf7+ {[%emt 0:00:05]} Ke5 {[%emt 0:00:50]} 39. Rf8 {[%emt 0:00:02]} Nc7 {[%emt 0:01:10]} 40. Rxa8 {[%emt 0:00:11]} 1-0